[Event "*** Titled Tuesday 3|2 Blitz"]
[Site "Chess.com"]
[Date "2015.07.07"]
[Round "1"]
[White "jup1978"]
[Black "Dr-Bassem"]
[Result "0-1"]
[WhiteElo "2154"]
[BlackElo "2472"]
[TimeControl "180+2"]
[EndTime "11:08:04 PDT"]
[Termination "Dr-Bassem won by resignation"]

1. e4 {[%clk 0:02:59]} 1... e5 {[%clk 0:03:00.6]} 2. Nf3 {[%clk 0:02:59.4]} 2...
Nc6 {[%clk 0:03:01.7]} 3. Bb5 {[%clk 0:03:00.4]} 3... a6 {[%clk 0:03:01.1]} 4.
Ba4 {[%clk 0:03:01.8]} 4... Nf6 {[%clk 0:03:01.1]} 5. Qe2 {[%clk 0:03:03.3]}
5... d6 {[%clk 0:02:56.6]} 6. c3 {[%clk 0:03:01.6]} 6... Bd7 {[%clk 0:02:49]} 7.
d4 {[%clk 0:03:00.7]} 7... Be7 {[%clk 0:02:41.3]} 8. d5 {[%clk 0:03:00.8]} 8...
Nb8 {[%clk 0:02:41]} 9. Bxd7+ {[%clk 0:03:01.1]} 9... Nbxd7 {[%clk 0:02:42.9]}
10. c4 {[%clk 0:03:02.2]} 10... O-O {[%clk 0:02:42.8]} 11. Nc3 {[%clk
0:03:03.4]} 11... a5 {[%clk 0:02:37.5]} 12. O-O {[%clk 0:03:04.6]} 12... Nc5
{[%clk 0:02:36.9]} 13. Ne1 {[%clk 0:03:00.1]} 13... a4 {[%clk 0:02:24.2]} 14. f3
{[%clk 0:03:00.1]} 14... Nh5 {[%clk 0:02:21.9]} 15. Nd3 {[%clk 0:02:55.9]} 15...
Qd7 {[%clk 0:02:19.3]} 16. Be3 {[%clk 0:02:53.3]} 16... b6 {[%clk 0:02:13.1]}
17. Qc2 {[%clk 0:02:34.5]} 17... h6 {[%clk 0:01:37.6]} 18. b4 {[%clk 0:02:30.3]}
18... axb3 {[%clk 0:01:23.6]} 19. axb3 {[%clk 0:02:32.2]} 19... Bg5 {[%clk
0:01:24]} 20. Bxc5 {[%clk 0:02:24.2]} 20... bxc5 {[%clk 0:01:23.7]} 21. b4
{[%clk 0:02:16.5]} 21... Be3+ {[%clk 0:01:23.1]} 22. Kh1 {[%clk 0:02:14]} 22...
cxb4 {[%clk 0:01:21.1]} 23. Nxb4 {[%clk 0:02:12.3]} 23... Rxa1 {[%clk
0:00:46.3]} 24. Rxa1 {[%clk 0:02:12]} 24... Bc5 {[%clk 0:00:47]} 25. Nd3 {[%clk
0:02:07.4]} 25... Bd4 {[%clk 0:00:47.5]} 26. Rb1 {[%clk 0:02:04.3]} 26... f5
{[%clk 0:00:47.5]} 27. exf5 {[%clk 0:01:56.5]} 27... Qxf5 {[%clk 0:00:45.6]} 28.
Ne4 {[%clk 0:01:55]} 28... Qg6 {[%clk 0:00:40.3]} 29. Qe2 {[%clk 0:01:53]} 29...
Ra8 {[%clk 0:00:27.4]} 30. c5 {[%clk 0:01:41.7]} 30... Kh7 {[%clk 0:00:23.5]}
31. cxd6 {[%clk 0:01:40.5]} 31... cxd6 {[%clk 0:00:25.4]} 32. Qc2 {[%clk
0:01:21.8]} 32... Ra5 {[%clk 0:00:21.7]} 33. Nb4 {[%clk 0:01:20.2]} 33... Rb5
{[%clk 0:00:18.8]} 34. Qd3 {[%clk 0:01:12.7]} 34... Ng3+ {[%clk 0:00:15.8]} 35.
Nxg3 {[%clk 0:00:43.9]} 35... Qxd3 {[%clk 0:00:15.7]} 0-1

[Event "*** Titled Tuesday 3|2 Blitz"]
[Site "Chess.com"]
[Date "2015.07.07"]
[Round "1"]
[White "stepanosinovsky"]
[Black "PauloCesarCosta"]
[Result "1-0"]
[WhiteElo "2306"]
[BlackElo "2005"]
[TimeControl "180+2"]
[EndTime "11:08:57 PDT"]
[Termination "stepanosinovsky won on time"]

1. g3 {[%clk 0:02:35.3]} 1... Nf6 {[%clk 0:02:53.6]} 2. Bg2 {[%clk 0:02:37.2]}
2... d5 {[%clk 0:02:54.9]} 3. d3 {[%clk 0:02:38.7]} 3... c6 {[%clk 0:02:56.5]}
4. Nf3 {[%clk 0:02:40.3]} 4... Bg4 {[%clk 0:02:55.8]} 5. O-O {[%clk 0:02:42.2]}
5... Nbd7 {[%clk 0:02:56.6]} 6. h3 {[%clk 0:02:43.3]} 6... Bh5 {[%clk
0:02:57.1]} 7. Nbd2 {[%clk 0:02:44.1]} 7... e6 {[%clk 0:02:57]} 8. c4 {[%clk
0:02:43.7]} 8... Be7 {[%clk 0:02:56.8]} 9. a3 {[%clk 0:02:43.4]} 9... O-O {[%clk
0:02:56.7]} 10. b4 {[%clk 0:02:41]} 10... dxc4 {[%clk 0:02:50.1]} 11. Nxc4
{[%clk 0:02:41.4]} 11... Nb6 {[%clk 0:02:50.8]} 12. Nce5 {[%clk 0:02:42]} 12...
Nfd7 {[%clk 0:02:51.3]} 13. Bb2 {[%clk 0:02:39.8]} 13... Nxe5 {[%clk 0:02:47.7]}
14. Nxe5 {[%clk 0:02:40.3]} 14... Nd7 {[%clk 0:02:44.9]} 15. Nc4 {[%clk
0:02:31.4]} 15... Nb6 {[%clk 0:02:44.8]} 16. Na5 {[%clk 0:02:31.8]} 16... Rb8
{[%clk 0:02:35.9]} 17. Rc1 {[%clk 0:02:31.7]} 17... Bf6 {[%clk 0:02:35.5]} 18.
Bxf6 {[%clk 0:02:21.9]} 18... Qxf6 {[%clk 0:02:35.8]} 19. Qd2 {[%clk 0:02:22.7]}
19... Rfc8 {[%clk 0:02:28.4]} 20. Rc2 {[%clk 0:02:23.3]} 20... Rd8 {[%clk
0:02:09.3]} 21. Rfc1 {[%clk 0:02:23.3]} 21... a6 {[%clk 0:02:07.5]} 22. Qe3
{[%clk 0:02:21.4]} 22... Nd5 {[%clk 0:02:06]} 23. Qa7 {[%clk 0:02:17.8]} 23...
h6 {[%clk 0:01:36.3]} 24. Nxb7 {[%clk 0:02:04.8]} 24... Qe7 {[%clk 0:01:24.4]}
25. Nxd8 {[%clk 0:02:05.1]} 25... Qxa7 {[%clk 0:01:24.4]} 26. Nxc6 {[%clk
0:02:06.1]} 26... Qa8 {[%clk 0:01:12.3]} 27. Nxb8 {[%clk 0:02:04.1]} 27... Kh7
{[%clk 0:01:10.6]} 28. Nc6 {[%clk 0:01:52.3]} 28... Qe8 {[%clk 0:01:01.5]} 29.
a4 {[%clk 0:01:51.8]} 29... Ne7 {[%clk 0:00:51.7]} 30. b5 {[%clk 0:01:49.1]}
30... axb5 {[%clk 0:00:52.6]} 31. axb5 {[%clk 0:01:48.8]} 31... Nc8 {[%clk
0:00:49.7]} 32. Ne5 {[%clk 0:01:33.7]} 32... Nb6 {[%clk 0:00:47.2]} 33. Rc6
{[%clk 0:01:20.3]} 33... Na4 {[%clk 0:00:41.1]} 34. g4 {[%clk 0:01:14.8]} 34...
Bg6 {[%clk 0:00:41.2]} 35. b6 {[%clk 0:01:14]} 35... Nxb6 {[%clk 0:00:32.1]} 36.
Rxb6 {[%clk 0:01:12.4]} 36... h5 {[%clk 0:00:28]} 37. Nxg6 {[%clk 0:01:11.2]}
37... fxg6 {[%clk 0:00:26]} 38. Be4 {[%clk 0:01:09.6]} 38... hxg4 {[%clk
0:00:25.7]} 39. hxg4 {[%clk 0:01:10.4]} 39... Qf7 {[%clk 0:00:19.8]} 40. e3
{[%clk 0:00:52.3]} 40... Qf6 {[%clk 0:00:15.8]} 41. Kg2 {[%clk 0:00:52.1]} 41...
Kg8 {[%clk 0:00:10.4]} 42. Rb8+ {[%clk 0:00:46.8]} 42... Kh7 {[%clk 0:00:05.2]}
43. Rh1+ {[%clk 0:00:47.5]} 1-0

[Event "*** Titled Tuesday 3|2 Blitz"]
[Site "Chess.com"]
[Date "2015.07.07"]
[Round "1"]
[White "AungTZ"]
[Black "LuckyTiger"]
[Result "0-1"]
[WhiteElo "2136"]
[BlackElo "2430"]
[TimeControl "180+2"]
[EndTime "11:09:17 PDT"]
[Termination "LuckyTiger won by resignation"]

1. e4 {[%clk 0:03:00.7]} 1... e6 {[%clk 0:03:00.7]} 2. d4 {[%clk 0:03:01.2]}
2... d5 {[%clk 0:03:02.3]} 3. exd5 {[%clk 0:03:00.6]} 3... exd5 {[%clk
0:03:02.3]} 4. Nc3 {[%clk 0:03:01.4]} 4... c6 {[%clk 0:02:57.8]} 5. Bd3 {[%clk
0:02:59.1]} 5... Bd6 {[%clk 0:02:58.5]} 6. h3 {[%clk 0:02:56.2]} 6... Ne7 {[%clk
0:02:55.5]} 7. Nf3 {[%clk 0:02:53.2]} 7... Bf5 {[%clk 0:02:55]} 8. O-O {[%clk
0:02:53.5]} 8... O-O {[%clk 0:02:54.1]} 9. Bg5 {[%clk 0:02:50.4]} 9... f6 {[%clk
0:02:34.2]} 10. Be3 {[%clk 0:02:50.7]} 10... Nd7 {[%clk 0:02:34.6]} 11. Ne2
{[%clk 0:02:47.1]} 11... Qc7 {[%clk 0:02:33.5]} 12. Qd2 {[%clk 0:02:41.8]} 12...
Rfe8 {[%clk 0:02:30.5]} 13. Rfe1 {[%clk 0:02:41.8]} 13... Nf8 {[%clk 0:02:29.3]}
14. Nh4 {[%clk 0:02:24.8]} 14... Bxd3 {[%clk 0:02:26.3]} 15. Qxd3 {[%clk
0:02:26]} 15... Nfg6 {[%clk 0:02:28.2]} 16. Nxg6 {[%clk 0:02:12.6]} 16... hxg6
{[%clk 0:02:30.1]} 17. c4 {[%clk 0:02:13.3]} 17... dxc4 {[%clk 0:02:00]} 18.
Qxc4+ {[%clk 0:02:13.2]} 18... Nd5 {[%clk 0:02:01.9]} 19. Nc3 {[%clk 0:02:14]}
19... Qf7 {[%clk 0:02:03.6]} 20. Nxd5 {[%clk 0:02:12.4]} 20... Qxd5 {[%clk
0:02:02.2]} 21. Qxd5+ {[%clk 0:02:13.3]} 21... cxd5 {[%clk 0:02:04.1]} 22. Rac1
{[%clk 0:02:13.7]} 22... a5 {[%clk 0:02:03.6]} 23. Kf1 {[%clk 0:02:09.8]} 23...
a4 {[%clk 0:02:04.7]} 24. Rc2 {[%clk 0:02:05.7]} 24... Kf7 {[%clk 0:02:04.9]}
25. Rec1 {[%clk 0:02:06.6]} 25... Ke6 {[%clk 0:02:03.9]} 26. a3 {[%clk
0:01:57.9]} 26... Kd7 {[%clk 0:02:02.1]} 27. Bd2 {[%clk 0:01:56.8]} 27... Re4
{[%clk 0:02:01.3]} 28. Bc3 {[%clk 0:01:42.8]} 28... Rae8 {[%clk 0:02:00.2]} 29.
Re1 {[%clk 0:01:43.6]} 29... Rxe1+ {[%clk 0:01:50.6]} 30. Bxe1 {[%clk
0:01:43.7]} 30... Re4 {[%clk 0:01:52.2]} 31. Bc3 {[%clk 0:01:44.7]} 31... f5
{[%clk 0:01:53.1]} 32. f3 {[%clk 0:01:45.8]} 32... Re8 {[%clk 0:01:51.2]} 33.
Re2 {[%clk 0:01:46.6]} 33... Rc8 {[%clk 0:01:52.4]} 34. Rc2 {[%clk 0:01:40.8]}
34... b5 {[%clk 0:01:51]} 35. Ke2 {[%clk 0:01:41.1]} 35... g5 {[%clk 0:01:46.6]}
36. Kd3 {[%clk 0:01:39]} 36... Rc4 {[%clk 0:01:05.8]} 37. Re2 {[%clk 0:01:35.4]}
37... g6 {[%clk 0:00:51.4]} 38. Re1 {[%clk 0:01:32.1]} 38... Rc8 {[%clk
0:00:52.4]} 39. Re2 {[%clk 0:01:32.6]} 39... Rf8 {[%clk 0:00:51.2]} 40. Bd2
{[%clk 0:01:22.4]} 40... g4 {[%clk 0:00:50.1]} 41. hxg4 {[%clk 0:01:19.3]} 41...
fxg4 {[%clk 0:00:52]} 42. fxg4 {[%clk 0:01:20.5]} 42... Rf1 {[%clk 0:00:51.3]}
43. Bg5 {[%clk 0:01:16.2]} 43... Rd1+ {[%clk 0:00:45.8]} 44. Rd2 {[%clk
0:01:16.9]} 44... Rb1 {[%clk 0:00:42.3]} 45. Re2 {[%clk 0:01:16]} 45... b4
{[%clk 0:00:42.5]} 46. axb4 {[%clk 0:01:16.9]} 46... Bxb4 {[%clk 0:00:44.4]} 47.
Kc2 {[%clk 0:01:10.6]} 47... Rf1 {[%clk 0:00:42.9]} 48. Be3 {[%clk 0:01:07.4]}
48... Kc6 {[%clk 0:00:41.3]} 49. Bd2 {[%clk 0:01:00.4]} 49... Kb5 {[%clk
0:00:38.4]} 50. Kd3 {[%clk 0:00:57.3]} 50... Rd1 {[%clk 0:00:36.6]} 51. Kc2
{[%clk 0:00:57.2]} 51... Rxd2+ {[%clk 0:00:37.4]} 52. Rxd2 {[%clk 0:00:57.7]}
52... Bxd2 {[%clk 0:00:39.3]} 53. Kxd2 {[%clk 0:00:59]} 53... Kc4 {[%clk
0:00:41.2]} 54. Ke3 {[%clk 0:00:54.8]} 54... Kb3 {[%clk 0:00:42.2]} 55. Kf4
{[%clk 0:00:54.2]} 55... Kxb2 {[%clk 0:00:43.4]} 56. Kg5 {[%clk 0:00:56.1]}
56... a3 {[%clk 0:00:45.2]} 57. Kxg6 {[%clk 0:00:57.9]} 57... a2 {[%clk
0:00:47.1]} 58. Kf6 {[%clk 0:00:59.6]} 58... a1=Q {[%clk 0:00:49]} 59. g5 {[%clk
0:01:01.5]} 59... Qf1+ {[%clk 0:00:49.7]} 60. Ke5 {[%clk 0:01:01.5]} 60... Qxg2
{[%clk 0:00:50.7]} 61. Kf6 {[%clk 0:01:01.6]} 61... Qf3+ {[%clk 0:00:52]} 62.
Ke7 {[%clk 0:01:01.9]} 62... Qe4+ {[%clk 0:00:53.2]} 63. Kd6 {[%clk 0:01:02.6]}
63... Qxd4 {[%clk 0:00:55.1]} 0-1

[Event "*** Titled Tuesday 3|2 Blitz"]
[Site "Chess.com"]
[Date "2015.07.07"]
[Round "1"]
[White "Cruel_Yaro"]
[Black "Haykos"]
[Result "1-0"]
[WhiteElo "2494"]
[BlackElo "2165"]
[TimeControl "180+2"]
[EndTime "11:09:25 PDT"]
[Termination "Cruel_Yaro won by resignation"]

1. e4 {[%clk 0:02:52.8]} 1... e5 {[%clk 0:03:00.2]} 2. Nf3 {[%clk 0:02:53]} 2...
Nc6 {[%clk 0:03:01.3]} 3. Bb5 {[%clk 0:02:51.8]} 3... g6 {[%clk 0:03:02.1]} 4.
c3 {[%clk 0:02:51.7]} 4... Nge7 {[%clk 0:03:01.9]} 5. d4 {[%clk 0:02:52]} 5...
exd4 {[%clk 0:03:03.1]} 6. cxd4 {[%clk 0:02:53.9]} 6... d5 {[%clk 0:03:04.7]} 7.
exd5 {[%clk 0:02:52.1]} 7... Nxd5 {[%clk 0:03:05.7]} 8. O-O {[%clk 0:02:53.4]}
8... Bg7 {[%clk 0:03:07.1]} 9. Re1+ {[%clk 0:02:54.9]} 9... Be6 {[%clk
0:03:08.5]} 10. Bg5 {[%clk 0:02:55.6]} 10... Qd6 {[%clk 0:03:07.8]} 11. Nbd2
{[%clk 0:02:57]} 11... O-O {[%clk 0:03:07.9]} 12. Nc4 {[%clk 0:02:58.1]} 12...
Qb4 {[%clk 0:03:09.2]} 13. a4 {[%clk 0:02:59.6]} 13... Rfe8 {[%clk 0:02:40.4]}
14. Bd2 {[%clk 0:02:49]} 14... Qf8 {[%clk 0:02:06.7]} 15. Nce5 {[%clk
0:02:45.1]} 15... Nde7 {[%clk 0:01:53]} 16. Ng5 {[%clk 0:02:18]} 16... Nxd4
{[%clk 0:01:20.8]} 17. Bxe8 {[%clk 0:02:15.9]} 17... Qxe8 {[%clk 0:01:22.7]} 18.
Nxe6 {[%clk 0:02:10.1]} 18... Nxe6 {[%clk 0:01:23.7]} 19. Bc3 {[%clk 0:02:07.3]}
19... Rd8 {[%clk 0:01:23.7]} 20. Qb3 {[%clk 0:02:07.5]} 20... Nc5 {[%clk
0:01:18.9]} 21. Qc4 {[%clk 0:02:05.2]} 21... b6 {[%clk 0:01:15.8]} 22. Ng4
{[%clk 0:01:40.7]} 22... Qf8 {[%clk 0:01:07.4]} 23. Bxg7 {[%clk 0:01:38.6]}
23... Kxg7 {[%clk 0:01:08.8]} 24. Qc3+ {[%clk 0:01:39.4]} 24... f6 {[%clk
0:01:09.3]} 25. Nxf6 {[%clk 0:01:36.5]} 25... Rd3 {[%clk 0:01:10.3]} 26. Qe5
{[%clk 0:01:24.7]} 26... Qxf6 {[%clk 0:00:51.5]} 27. Qxe7+ {[%clk 0:01:24.7]}
27... Qxe7 {[%clk 0:00:53.4]} 28. Rxe7+ {[%clk 0:01:25.5]} 28... Kf6 {[%clk
0:00:55.3]} 29. Rxc7 {[%clk 0:01:27.4]} 29... Nxa4 {[%clk 0:00:51.6]} 30. Rxa7
{[%clk 0:01:23.2]} 30... Nxb2 {[%clk 0:00:52.8]} 31. Rxh7 {[%clk 0:01:22.8]}
31... Nc4 {[%clk 0:00:48.5]} 32. h3 {[%clk 0:01:20.6]} 32... b5 {[%clk
0:00:48.3]} 33. Rb7 {[%clk 0:01:20.2]} 33... Nd6 {[%clk 0:00:47.4]} 34. Ra6
{[%clk 0:01:19.4]} 34... Ke5 {[%clk 0:00:48.2]} 35. Re7+ {[%clk 0:01:15.9]}
35... Kd5 {[%clk 0:00:46.9]} 36. Rb6 {[%clk 0:01:06.5]} 36... Kc5 {[%clk
0:00:45.4]} 37. Rb8 {[%clk 0:01:06.9]} 37... Kc6 {[%clk 0:00:37]} 38. Rg7 {[%clk
0:01:06.9]} 38... Rd1+ {[%clk 0:00:35.9]} 39. Kh2 {[%clk 0:01:07.1]} 39... Rd2
{[%clk 0:00:37]} 40. f3 {[%clk 0:01:06.8]} 40... Rd4 {[%clk 0:00:32.5]} 41. Rxg6
{[%clk 0:01:05]} 41... b4 {[%clk 0:00:34.4]} 42. Rg4 {[%clk 0:01:03.3]} 42...
Rxg4 {[%clk 0:00:35.4]} 43. fxg4 {[%clk 0:00:55.4]} 43... Nb7 {[%clk 0:00:37.3]}
44. g5 {[%clk 0:00:48.1]} 44... b3 {[%clk 0:00:38.2]} 45. g6 {[%clk 0:00:43.2]}
45... b2 {[%clk 0:00:36.7]} 46. g7 {[%clk 0:00:43.5]} 46... b1=Q {[%clk
0:00:36.1]} 47. g8=Q {[%clk 0:00:44.3]} 47... Qb4 {[%clk 0:00:28.8]} 48. Qc8+
{[%clk 0:00:41.9]} 48... Kb6 {[%clk 0:00:29.9]} 1-0

[Event "*** Titled Tuesday 3|2 Blitz"]
[Site "Chess.com"]
[Date "2015.07.07"]
[Round "1"]
[White "alturas_pacificas"]
[Black "MasterLeif"]
[Result "1-0"]
[WhiteElo "2050"]
[BlackElo "2291"]
[TimeControl "180+2"]
[EndTime "11:09:42 PDT"]
[Termination "alturas_pacificas won by resignation"]

1. d4 {[%clk 0:02:42.1]} 1... d5 {[%clk 0:02:48.8]} 2. Bf4 {[%clk 0:02:43]} 2...
Bg4 {[%clk 0:02:41.9]} 3. h3 {[%clk 0:02:41.5]} 3... Bh5 {[%clk 0:02:42.8]} 4.
Nf3 {[%clk 0:02:40.5]} 4... Nd7 {[%clk 0:02:41.1]} 5. e3 {[%clk 0:02:40.3]} 5...
e6 {[%clk 0:02:41.3]} 6. c4 {[%clk 0:02:40.7]} 6... Ngf6 {[%clk 0:02:37.9]} 7.
Nc3 {[%clk 0:02:42]} 7... c6 {[%clk 0:02:31.9]} 8. Qb3 {[%clk 0:02:38.8]} 8...
Qb6 {[%clk 0:02:30.8]} 9. c5 {[%clk 0:02:39.9]} 9... Qxb3 {[%clk 0:02:30.2]} 10.
axb3 {[%clk 0:02:41.8]} 10... Bxf3 {[%clk 0:02:30.9]} 11. gxf3 {[%clk
0:02:42.1]} 11... a6 {[%clk 0:02:29.1]} 12. b4 {[%clk 0:02:42.2]} 12... Rc8
{[%clk 0:02:27]} 13. Bd3 {[%clk 0:02:12]} 13... Be7 {[%clk 0:02:28]} 14. Bh2
{[%clk 0:02:04.9]} 14... O-O {[%clk 0:02:28.6]} 15. Rg1 {[%clk 0:02:06]} 15...
g6 {[%clk 0:02:28.2]} 16. Kd2 {[%clk 0:02:04.1]} 16... Bd8 {[%clk 0:02:29]} 17.
Bd6 {[%clk 0:02:01.4]} 17... Re8 {[%clk 0:02:29.9]} 18. Bf4 {[%clk 0:01:57.4]}
18... Bc7 {[%clk 0:02:29.7]} 19. Bxc7 {[%clk 0:01:57.4]} 19... Rxc7 {[%clk
0:02:31.6]} 20. f4 {[%clk 0:01:55.9]} 20... Kg7 {[%clk 0:02:31.3]} 21. Be2
{[%clk 0:01:51.4]} 21... Rcc8 {[%clk 0:02:28.5]} 22. Bf3 {[%clk 0:01:52.8]}
22... Ra8 {[%clk 0:02:27.7]} 23. h4 {[%clk 0:01:49.6]} 23... h5 {[%clk
0:02:27.3]} 24. Ne2 {[%clk 0:01:45.5]} 24... Kf8 {[%clk 0:02:27]} 25. Nc1 {[%clk
0:01:46.6]} 25... Ng8 {[%clk 0:02:27.8]} 26. Nd3 {[%clk 0:01:46.4]} 26... Ne7
{[%clk 0:02:28.6]} 27. e4 {[%clk 0:01:33.7]} 27... Rad8 {[%clk 0:02:26.4]} 28.
Kc3 {[%clk 0:01:24.9]} 28... Nf6 {[%clk 0:02:22.9]} 29. exd5 {[%clk 0:01:07.3]}
29... Nexd5+ {[%clk 0:02:13.8]} 30. Kc4 {[%clk 0:01:03.1]} 30... Ne7 {[%clk
0:02:11.6]} 31. Rg5 {[%clk 0:00:26]} 31... Nf5 {[%clk 0:02:12.1]} 32. Rxf5
{[%clk 0:00:27.1]} 32... exf5 {[%clk 0:02:11.6]} 33. Ne5 {[%clk 0:00:27.8]}
33... Nd7 {[%clk 0:02:10.8]} 34. Re1 {[%clk 0:00:19.6]} 34... Nxe5+ {[%clk
0:02:11.6]} 35. fxe5 {[%clk 0:00:20.7]} 35... Re7 {[%clk 0:02:08]} 36. Bg2
{[%clk 0:00:21]} 36... Red7 {[%clk 0:01:58.5]} 37. Rd1 {[%clk 0:00:21.9]} 37...
f4 {[%clk 0:01:58.4]} 38. Bh3 {[%clk 0:00:18.3]} 38... Rd5 {[%clk 0:01:58.3]}
39. Rd3 {[%clk 0:00:15.5]} 39... Kg7 {[%clk 0:01:53.4]} 40. Bg2 {[%clk
0:00:13.1]} 40... R5d7 {[%clk 0:01:53.3]} 41. Bh3 {[%clk 0:00:12.9]} 41... Re7
{[%clk 0:01:52.6]} 42. Bg2 {[%clk 0:00:14.3]} 42... f6 {[%clk 0:01:36.3]} 43.
exf6+ {[%clk 0:00:14.4]} 43... Kxf6 {[%clk 0:01:38.2]} 44. d5 {[%clk 0:00:15.9]}
44... cxd5+ {[%clk 0:01:38.3]} 45. Bxd5 {[%clk 0:00:16.5]} 45... Red7 {[%clk
0:01:37.1]} 46. Be4 {[%clk 0:00:10.5]} 46... Rxd3 {[%clk 0:01:37.1]} 47. Bxd3
{[%clk 0:00:12.4]} 47... g5 {[%clk 0:01:38.2]} 48. hxg5+ {[%clk 0:00:12.4]}
48... Kxg5 {[%clk 0:01:40.1]} 49. Be4 {[%clk 0:00:13]} 49... Rd7 {[%clk
0:01:38]} 50. b5 {[%clk 0:00:13.8]} 50... axb5+ {[%clk 0:01:38.8]} 51. Kxb5
{[%clk 0:00:15.7]} 51... h4 {[%clk 0:01:32.2]} 52. Kb6 {[%clk 0:00:16.1]} 52...
Rd2 {[%clk 0:01:32.1]} 53. b4 {[%clk 0:00:16]} 53... h3 {[%clk 0:01:22.2]} 54.
Bxb7 {[%clk 0:00:16.7]} 54... Rxf2 {[%clk 0:01:22.7]} 55. c6 {[%clk 0:00:17.5]}
55... Rc2 {[%clk 0:01:19]} 56. c7 {[%clk 0:00:18.8]} 56... Kg4 {[%clk 0:01:17]}
57. Bc6 {[%clk 0:00:17.7]} 57... Kg3 {[%clk 0:01:01.5]} 58. c8=Q {[%clk
0:00:18.3]} 58... h2 {[%clk 0:01:02.1]} 59. Qg8+ {[%clk 0:00:18.7]} 59... Kf2
{[%clk 0:01:01.9]} 60. Qg2+ {[%clk 0:00:19.2]} 60... Ke3 {[%clk 0:01:01.9]} 61.
Qxc2 {[%clk 0:00:20]} 61... f3 {[%clk 0:01:03.8]} 62. Bxf3 {[%clk 0:00:19.8]}
1-0

[Event "*** Titled Tuesday 3|2 Blitz"]
[Site "Chess.com"]
[Date "2015.07.07"]
[Round "1"]
[White "armago"]
[Black "Keaton87"]
[Result "0-1"]
[WhiteElo "2145"]
[BlackElo "2444"]
[TimeControl "180+2"]
[EndTime "11:09:50 PDT"]
[Termination "Keaton87 won by resignation"]

1. d4 {[%clk 0:02:58.9]} 1... Nf6 {[%clk 0:02:56.8]} 2. c4 {[%clk 0:03:00]} 2...
g6 {[%clk 0:02:53]} 3. Nc3 {[%clk 0:02:58.5]} 3... Bg7 {[%clk 0:02:54.2]} 4. e4
{[%clk 0:02:58.8]} 4... O-O {[%clk 0:02:55.6]} 5. Bd3 {[%clk 0:03:00.3]} 5... d6
{[%clk 0:02:54.5]} 6. Nge2 {[%clk 0:03:01.5]} 6... Nc6 {[%clk 0:02:40.1]} 7. O-O
{[%clk 0:03:01.4]} 7... e5 {[%clk 0:02:40.4]} 8. d5 {[%clk 0:03:02]} 8... Nd4
{[%clk 0:02:41.7]} 9. Bg5 {[%clk 0:03:00.5]} 9... h6 {[%clk 0:02:39.6]} 10. Bd2
{[%clk 0:03:01.3]} 10... a5 {[%clk 0:02:34.8]} 11. Rb1 {[%clk 0:03:00.3]} 11...
Nd7 {[%clk 0:02:35.8]} 12. Nxd4 {[%clk 0:02:27.4]} 12... exd4 {[%clk 0:02:35.3]}
13. Ne2 {[%clk 0:02:27.8]} 13... Nc5 {[%clk 0:02:36.5]} 14. Qc2 {[%clk
0:02:20.1]} 14... f5 {[%clk 0:02:27.8]} 15. f3 {[%clk 0:02:13]} 15... Be5 {[%clk
0:02:24]} 16. g3 {[%clk 0:02:00]} 16... fxe4 {[%clk 0:02:18]} 17. Bxe4 {[%clk
0:01:49.5]} 17... d3 {[%clk 0:02:18.9]} 18. Bxd3 {[%clk 0:01:49.8]} 18... Nxd3
{[%clk 0:02:20.2]} 19. Qxd3 {[%clk 0:01:49.5]} 19... Bf5 {[%clk 0:02:21.3]} 20.
Qe3 {[%clk 0:01:41.5]} 20... Bxb1 {[%clk 0:02:22.2]} 21. Rxb1 {[%clk 0:01:42]}
21... h5 {[%clk 0:01:54.6]} 22. Nd4 {[%clk 0:00:54.8]} 22... Bxd4 {[%clk
0:01:39.4]} 23. Qxd4 {[%clk 0:00:55.6]} 23... Rxf3 {[%clk 0:01:41.1]} 24. Bc3
{[%clk 0:00:54]} 24... Rxc3 {[%clk 0:01:37.7]} 25. Qxc3 {[%clk 0:00:54.5]} 25...
Qg5 {[%clk 0:01:36.4]} 26. Rf1 {[%clk 0:00:52.2]} 26... Re8 {[%clk 0:01:35.4]}
27. Qf3 {[%clk 0:00:50.2]} 27... Qe3+ {[%clk 0:01:36.1]} 28. Qxe3 {[%clk
0:00:50.8]} 28... Rxe3 {[%clk 0:01:38]} 29. Rf2 {[%clk 0:00:49.1]} 29... a4
{[%clk 0:01:35.3]} 30. Kf1 {[%clk 0:00:48.7]} 30... Re4 {[%clk 0:01:34.6]} 31.
b3 {[%clk 0:00:48.6]} 31... Re3 {[%clk 0:01:33.1]} 32. Re2 {[%clk 0:00:47.6]}
32... Rc3 {[%clk 0:01:28.9]} 33. Re7 {[%clk 0:00:41.1]} 33... Rc1+ {[%clk
0:00:50.7]} 34. Kg2 {[%clk 0:00:40.2]} 34... Ra1 {[%clk 0:00:47.2]} 35. Rxc7
{[%clk 0:00:38.7]} 35... Rxa2+ {[%clk 0:00:48.1]} 36. Kh3 {[%clk 0:00:30.9]}
36... axb3 {[%clk 0:00:49.1]} 37. Rxb7 {[%clk 0:00:31.9]} 37... Rc2 {[%clk
0:00:39.6]} 38. Rxb3 {[%clk 0:00:31.5]} 38... Rxc4 {[%clk 0:00:41]} 39. Rb6
{[%clk 0:00:32.4]} 39... Kf7 {[%clk 0:00:41.7]} 40. Rxd6 {[%clk 0:00:33.3]}
40... Rd4 {[%clk 0:00:43.1]} 41. Kg2 {[%clk 0:00:32.8]} 41... Rd2+ {[%clk
0:00:42.4]} 42. Kh3 {[%clk 0:00:32.6]} 42... Rd4 {[%clk 0:00:41.4]} 43. Rd7+
{[%clk 0:00:32.4]} 43... Kf6 {[%clk 0:00:42.2]} 44. Rd6+ {[%clk 0:00:32.7]}
44... Kf5 {[%clk 0:00:43]} 45. Kg2 {[%clk 0:00:32.7]} 45... Rd2+ {[%clk
0:00:43.4]} 46. Kh3 {[%clk 0:00:31.8]} 46... Rd4 {[%clk 0:00:44.5]} 47. Kg2
{[%clk 0:00:32.5]} 47... Rd2+ {[%clk 0:00:45.5]} 48. Kg1 {[%clk 0:00:33.8]}
48... Kg5 {[%clk 0:00:42.9]} 49. h3 {[%clk 0:00:34.1]} 49... Kf5 {[%clk
0:00:43.6]} 50. Kf1 {[%clk 0:00:34.2]} 50... g5 {[%clk 0:00:41.4]} 51. Rd8
{[%clk 0:00:34.1]} 51... Ke4 {[%clk 0:00:37.2]} 52. d6 {[%clk 0:00:33]} 52...
Kf3 {[%clk 0:00:38.5]} 53. Ke1 {[%clk 0:00:33.3]} 53... Rd5 {[%clk 0:00:39.7]}
54. h4 {[%clk 0:00:32.3]} 54... g4 {[%clk 0:00:40.4]} 55. d7 {[%clk 0:00:31.7]}
55... Kxg3 {[%clk 0:00:41.8]} 56. Ke2 {[%clk 0:00:32.9]} 56... Kxh4 {[%clk
0:00:43.1]} 57. Ke3 {[%clk 0:00:33.3]} 57... Kg3 {[%clk 0:00:43.1]} 58. Ke4
{[%clk 0:00:32.2]} 58... Rd1 {[%clk 0:00:44.1]} 59. Ke3 {[%clk 0:00:30.9]} 59...
h4 {[%clk 0:00:45.3]} 60. Ke2 {[%clk 0:00:31.4]} 60... Rd6 {[%clk 0:00:46.2]}
61. Ke3 {[%clk 0:00:28.8]} 61... h3 {[%clk 0:00:47.4]} 62. Ke2 {[%clk
0:00:27.7]} 62... h2 {[%clk 0:00:48.5]} 0-1